bitfinex/quotes_SOLUSD_20241209
["timestamp","ask_amount","ask_price","bid_price","bid_amount"]
[1733728991347,23.776884,229.15,229.02,24.87709818]
[1733728991512,20.0,229.12,229.02,0.65464526]
[1733728991924,23.776884,229.11,228.96,24.22245292]
[1733728992138,23.776884,229.11,228.98,6.89089538]
[1733728992352,20.0,229.08,228.95,3.839]
[1733728992555,20.0,229.08,228.96,0.65486782]
[1733728992841,20.0,229.08,228.95,3.839]
[1733728993220,20.0,229.08,228.94,0.6549231]
[1733728993527,20.0,229.04,228.94,0.6549231]
[1733728993739,20.0,229.04,228.93,6.2704]
[1733728993945,20.0,229.04,228.93,0.65496487]
[1733728994273,20.0,229.09,228.93,0.65496487]
[1733728994420,23.776884,229.08,228.93,0.65496487]
[1733728994746,20.0,229.05,228.95,24.22245292]
[1733728994955,20.0,229.05,228.96,24.87731045]
[1733728995113,20.0,229.09,228.96,0.65485753]
[1733728995309,20.0,229.09,228.96,24.87731045]
[1733728995631,20.0,229.09,228.96,0.65485753]
[1733728996144,20.0,229.09,228.95,0.65485463]
[1733728996456,20.0,229.09,228.96,24.22245292]
[1733728996615,20.0,229.09,228.97,0.65478363]
[1733728999549,20.0,229.05,228.91,24.22245292]
[1733728999860,20.0,229.05,228.9,24.87727914]
[1733729000570,20.0,229.01,228.9,0.65482622]
[1733729000977,20.0,229.01,228.9,24.87727914]
[1733729002273,20.0,229.01,228.9,0.65482622]
[1733729002846,20.0,228.96,228.78,24.22245292]
[1733729003043,20.0,228.96,228.79,24.87768597]
[1733729003465,20.0,228.97,228.79,24.87768597]
[1733729003982,20.0,228.97,228.83,23.776884]
[1733729004154,20.0,228.97,228.83,24.43207213]
[1733729004361,20.0,228.97,228.84,24.22245292]
[1733729004539,20.0,228.97,228.85,24.8775792]
[1733729005074,20.0,228.97,228.85,0.65512628]
[1733729005561,20.0,228.97,228.85,23.776884]
[1733729006571,20.0,228.97,228.82,23.776884]
[1733729006787,20.0,228.97,228.8,24.22245292]
[1733729006984,20.0,228.97,228.81,0.65524283]
[1733729007969,20.0,228.97,228.79,0.65525735]
[1733729008181,20.0,228.97,228.79,24.87771027]
[1733729008965,23.776884,228.96,228.79,0.65525735]
[1733729009193,20.0,228.97,228.79,0.65525735]
[1733729009402,20.0,228.93,228.79,0.65525735]
[1733729009561,20.0,228.93,228.77,0.65537307]
[1733729009998,20.0,228.93,228.79,24.22245292]
[1733729010294,20.0,228.97,228.81,47.99933692]
[1733729010507,6.4707,229.0,228.84,24.22245292]
[1733729010808,6.4707,229.0,228.85,24.87763311]
[1733729011101,6.4707,229.0,228.85,0.65518019]
[1733729012200,20.0,228.97,228.85,0.65518019]
[1733729012367,20.0,228.97,228.84,0.65519366]
[1733729012569,20.0,228.97,228.81,23.776884]
[1733729012786,20.0,228.97,228.8,23.776884]
[1733729013069,20.0,228.93,228.78,47.99933692]
[1733729013267,20.0,228.93,228.8,23.776884]
[1733729014382,20.0,228.97,228.8,23.776884]
[1733729015799,23.776884,228.96,228.79,23.776884]
[1733729016007,20.0,228.93,228.78,23.776884]
[1733729016707,20.0,228.93,228.78,0.65542296]
[1733729017469,20.0,228.93,228.78,0.65542207]
[1733729017690,17.491174,228.92,228.78,0.65542207]
[1733729017894,20.0,228.89,228.78,0.65542207]
[1733729018098,20.0,228.89,228.79,23.776884]
[1733729018305,20.0,228.89,228.8,24.8777738]
[1733729018607,6.4707,229.0,228.85,47.99933692]
[1733729018608,1.85362108,228.99,228.85,47.99933692]
[1733729018912,6.4707,229.0,228.85,23.776884]
[1733729019272,17.485918,228.98,228.85,23.776884]
[1733729019709,20.0,228.95,228.86,0.65516884]
[1733729020080,17.485918,228.98,228.88,24.22245292]
[1733729020282,6.4707,229.0,228.9,24.22245292]
[1733729020516,6.4707,229.0,228.91,0.65503722]
[1733729021277,2.76538456,229.05,228.91,0.65503722]
[1733729021476,20.0,229.02,228.91,0.65503722]
[1733729022291,20.0,229.0,228.91,0.65503722]
[1733729022691,20.0,229.02,228.92,23.776884]
[1733729022891,20.0,229.01,228.92,23.776884]
[1733729023091,20.0,229.01,228.93,0.65498912]
[1733729023285,6.6924079,229.29,228.95,24.22245292]
[1733729023476,0.972435,229.28,228.96,47.99933692]
[1733729023679,0.972435,229.28,228.85,10.1309]
[1733729023680,0.8669,229.25,228.98,47.99933692]
[1733729023981,0.972435,229.24,229.01,24.22245292]
[1733729024315,1.07797,229.24,229.03,23.776884]
[1733729024497,1.07797,229.24,229.04,0.6546505]
[1733729025789,20.0,229.22,229.04,0.6546505]
[1733729026110,5.6041,229.25,229.09,24.22245292]
[1733729026319,5.6041,229.25,229.06,3.776]
[1733729026320,5.6041,229.25,229.12,47.99933692]
[1733729026483,5.6041,229.25,229.13,0.65437106]
[1733729026680,5.6041,229.25,229.14,23.776884]
[1733729026890,5.6041,229.25,229.1,23.776884]
[1733729026891,17.476471,229.28,229.15,0.65432736]
[1733729027195,4.66815902,229.29,229.16,23.776884]
[1733729027397,4.66815902,229.29,229.18,23.776884]
[1733729027596,6.1224649,229.32,229.22,23.776884]
[1733729027597,0.5183649,229.32,229.22,23.776884]
[1733729027792,0.5183649,229.32,229.23,0.65408059]
[1733729028000,0.5183649,229.32,229.24,23.776884]
[1733729028191,0.5183649,229.32,229.23,0.65408059]
[1733729028915,0.5183649,229.32,229.2,4.43016599]
[1733729029783,0.5183649,229.32,229.2,3.776]
[1733729030203,0.5183649,229.32,229.17,0.65425294]
[1733729030610,0.5183649,229.32,229.16,0.65426989]
[1733729031004,20.0,229.29,229.17,23.776884]
[1733729031203,0.5183649,229.32,229.2,24.22245292]
[1733729031498,0.5183649,229.32,229.13,28.11845292]
[1733729031499,0.5183649,229.32,229.22,47.99933692]
[1733729031699,0.5183649,229.32,229.23,0.65403499]
[1733729032015,0.5183649,229.32,229.24,23.776884]
[1733729032899,0.5183649,229.32,229.25,0.65407165]
[1733729034400,0.5183649,229.32,229.26,23.776884]
[1733729034596,0.5183649,229.32,229.28,23.776884]
[1733729034787,0.5183649,229.32,229.29,0.65391378]
[1733729035204,0.5183649,229.32,229.3,23.776884]
[1733729035425,0.5183649,229.32,229.31,24.43073479]
[1733729036724,0.5183649,229.32,229.28,0.65385548]
[1733729036899,0.5183649,229.32,229.29,23.776884]
[1733729037109,0.5183649,229.32,229.3,0.65390698]
[1733729037994,0.5183649,229.32,229.31,23.776884]
[1733729038205,0.5183649,229.32,229.31,47.99933692]
[1733729038438,5.6041,229.51,229.31,47.99933692]
[1733729038439,5.6041,229.51,229.39,23.776884]
[1733729038647,5.6041,229.51,229.42,24.22245292]
[1733729038805,5.6041,229.56,229.42,23.86596735]
[1733729039006,5.6041,229.56,229.43,0.65349554]
[1733729039223,0.0183649,229.54,229.43,0.65349554]
[1733729039420,0.67188933,229.54,229.39,0.65353425]
[1733729040815,0.0183649,229.54,229.4,47.99933692]
[1733729041118,0.0183649,229.54,229.42,23.776884]
[1733729041328,0.0183649,229.54,229.43,0.65353749]
[1733729041727,5.6224649,229.54,229.43,0.65353749]
[1733729042121,20.0,229.51,229.43,0.65353749]
[1733729042314,0.0183649,229.54,229.45,23.776884]
[1733729042644,0.0183649,229.54,229.47,23.776884]
[1733729042803,0.0183649,229.54,229.48,0.65336555]
[1733729043005,0.0183649,229.54,229.49,30.365484]
[1733729043208,0.0183649,229.54,229.51,23.776884]
[1733729043446,0.0183649,229.54,229.52,0.65327444]
[1733729044144,0.0183649,229.54,229.47,0.6533563]
[1733729044514,0.0183649,229.54,229.46,3.939]
[1733729044713,0.0183649,229.54,229.43,6.3264]
[1733729044921,0.0183649,229.54,229.41,0.65359046]
[1733729045543,20.0,229.53,229.41,0.65359046]
[1733729046248,0.65352443,229.52,229.4,4.60076366]
[1733729046550,0.0183649,229.54,229.41,24.22245292]
[1733729046708,0.0183649,229.54,229.42,0.65349566]
[1733729047109,0.0183649,229.54,229.44,24.22245292]
[1733729047339,0.0183649,229.54,229.46,23.776884]
[1733729047541,0.0183649,229.54,229.47,0.65337978]
[1733729048445,0.0183649,229.54,229.48,23.776884]
[1733729048612,0.0183649,229.54,229.47,0.6533385]
[1733729048817,0.0183649,229.54,229.48,24.22245292]
[1733729049017,0.0183649,229.54,229.49,0.65334888]
[1733729049323,0.0183649,229.54,229.5,23.776884]
[1733729049530,0.0183649,229.54,229.51,0.65326882]
[1733729050650,0.0183649,229.54,229.48,23.776884]
[1733729050849,0.0183649,229.54,229.49,0.65334865]
[1733729051343,0.0183649,229.54,229.46,6.4672]
[1733729051642,0.0183649,229.54,229.45,0.65338972]
[1733729051938,0.0183649,229.54,229.41,0.65351719]
[1733729052140,20.0,229.53,229.4,10.533]
[1733729052350,0.65352443,229.52,229.4,10.533]
[1733729053422,20.0,229.48,229.35,6.5615]
[1733729053756,0.65352443,229.47,229.34,3.7759]
[1733729053933,23.776884,229.46,229.29,7.21529447]
[1733729054253,20.0,229.42,229.29,7.21529447]
[1733729054413,20.0,229.42,229.32,24.22245292]
[1733729054616,0.65352443,229.49,229.33,24.87622676]
[1733729054847,20.0,229.47,229.33,24.87622676]
[1733729055151,20.0,229.47,229.36,24.22245292]
[1733729055457,20.0,229.47,229.37,24.43053225]
[1733729056227,0.8662,229.51,229.37,48.65298517]
[1733729056420,0.65352443,229.51,229.37,24.43053225]
[1733729056644,0.65352443,229.51,229.37,0.65364825]
[1733729056821,20.0,229.52,229.39,23.776884]
[1733729057016,20.0,229.52,229.4,0.65360803]
[1733729057220,0.67188933,229.54,229.41,28.14465292]
[1733729057526,0.0183649,229.54,229.46,24.22245292]
[1733729057831,0.0183649,229.54,229.41,10.4094]
[1733729057832,0.0183649,229.54,229.49,136.3]
[1733729058057,0.0183649,229.54,229.5,0.6533193]
[1733729061647,0.0183649,229.54,229.51,23.776884]
[1733729061823,0.0183649,229.54,229.52,0.65327147]
[1733729062028,0.0183649,229.54,229.53,23.776884]
[1733729062338,0.0183649,229.54,229.53,51.92153692]
[1733729062856,0.0183649,229.54,229.53,27.699084]
[1733729063148,0.65352443,229.7,229.57,136.2816351]
[1733729063319,0.65352443,229.7,229.59,23.776884]
[1733729063525,10.0,229.72,229.6,0.65310727]
[1733729063526,0.65352443,229.71,229.6,0.65310727]
[1733729063923,10.0,229.72,229.6,0.65310727]
[1733729064555,20.0,229.69,229.6,0.65310727]
[1733729064855,20.0,229.69,229.61,0.65303804]
[1733729065735,10.0,229.72,229.61,0.65303804]
[1733729065920,10.0,229.72,229.62,0.65300131]
[1733729066118,0.65352443,229.71,229.59,0.65301695]
[1733729066321,10.0,229.72,229.59,0.65301695]
[1733729067147,20.0,229.69,229.59,0.65301695]
[1733729068651,20.0,229.69,229.63,136.3]
[1733729068859,20.0,229.69,229.58,47.99933692]
[1733729068860,10.0,229.72,229.64,0.65298187]
[1733729069389,10.0,229.72,229.65,28.01055292]
[1733729069584,10.0,229.72,229.66,24.87525886]
[1733729070229,10.0,229.72,229.68,30.61245292]
[1733729070560,10.0,229.72,229.69,0.65277478]
[1733729071435,10.0,229.72,229.65,3.7881]
[1733729071628,20.0,229.69,229.63,6.278]
[1733729071834,20.0,229.69,229.6,3.6426]
[1733729071835,20.0,229.69,229.6,4.29566486]
[1733729072147,10.0,229.72,229.6,28.51811778]
[1733729072724,20.0,229.69,229.6,4.29566486]
[1733729072922,10.0,229.72,229.6,4.29566486]
[1733729073125,10.0,229.72,229.61,47.99933692]
[1733729073327,10.0,229.72,229.62,24.87534902]
[1733729073553,20.0,229.69,229.6,3.6426]
[1733729073866,10.0,229.72,229.61,0.65303361]
[1733729074030,10.0,229.72,229.61,24.87548653]
[1733729074742,10.0,229.72,229.61,0.65303361]
[1733729075464,10.0,229.72,229.61,24.87548653]
[1733729076159,10.0,229.72,229.62,24.22245292]
[1733729076364,10.0,229.72,229.63,24.42975304]
[1733729076882,10.0,229.72,229.63,0.44636904]
[1733729077294,10.0,229.72,229.64,0.65298321]
[1733729078294,9.0,229.72,229.64,0.65298321]
[1733729078465,9.0,229.72,229.64,0.65295026]
[1733729079585,9.0,229.72,229.64,24.87540318]
[1733729079959,9.0,229.72,229.67,24.22245292]
[1733729080160,9.0,229.72,229.69,6.3722]
[1733729080460,9.0,229.72,229.7,0.65277568]
[1733729080893,9.0,229.72,229.64,20.0]
[1733729080894,9.0,229.72,229.65,0.65286504]
[1733729081193,9.0,229.72,229.66,23.776884]
[1733729081364,9.0,229.72,229.67,0.65279857]
[1733729081778,9.0,229.72,229.63,0.44453185]
[1733729081978,9.0,229.72,229.64,24.22245292]
[1733729082174,9.0,229.72,229.65,24.34068213]
[1733729082583,9.0,229.72,229.66,24.22245292]
[1733729082793,9.0,229.72,229.67,0.56367603]
[1733729085368,9.0,229.72,229.62,0.56382621]
[1733729086001,20.0,229.69,229.62,0.56382621]
[1733729086500,20.0,229.69,229.61,0.56417301]
[1733729086876,20.0,229.69,229.6,3.6426]
[1733729087570,20.0,229.69,229.6,4.20693457]
[1733729093908,9.0,229.72,229.66,24.22245292]
[1733729094095,9.0,229.72,229.67,0.56366432]
[1733729094805,9.0,229.72,229.68,24.22245292]
[1733729094979,9.0,229.72,229.69,24.78599127]
[1733729095309,9.0,229.72,229.71,24.22245292]
[1733729095603,9.0,229.72,229.7,24.22245292]
[1733729095810,9.0,229.72,229.71,24.785782]
[1733729095974,0.5183649,229.77,229.71,24.785782]
[1733729096181,0.5183649,229.77,229.72,24.22245292]
[1733729096406,0.5183649,229.77,229.73,24.78566117]
[1733729096615,0.5183649,229.77,229.74,24.22245292]
[1733729096907,0.5183649,229.77,229.75,0.56314684]
[1733729100683,0.5183649,229.77,229.75,24.78559976]
[1733729101014,0.5183649,229.77,229.76,24.22245292]
[1733729101203,0.5183649,229.77,229.76,0.56287838]
[1733729101514,0.5183649,229.77,229.76,48.5622153]
[1733729101720,0.6692,229.93,229.84,135.7816351]
[1733729101879,1.48472223,229.93,229.77,24.22245292]
[1733729102085,3.27122225,229.93,229.78,24.33966618]
[1733729102291,1.48472223,229.93,229.78,0.56278218]
[1733729103004,1.48472223,229.93,229.76,24.22245292]
[1733729103005,20.0,229.89,229.77,0.56295125]
[1733729103608,20.0,229.81,229.71,9.8913]
[1733729103799,20.0,229.81,229.71,10.4545044]
[1733729105117,20.0,229.81,229.71,4.1595044]
[1733729105326,20.0,229.81,229.72,0.56350513]
[1733729106015,20.0,229.77,229.68,0.56356862]
[1733729107003,0.81601784,229.76,229.65,3.9156]
[1733729107224,20.0,229.72,229.63,0.56399566]
[1733729107431,20.0,229.8,229.67,24.22245292]
[1733729107616,20.0,229.8,229.68,24.78606991]
[1733729108130,20.0,229.8,229.68,0.56361699]
[1733729108284,19.18453935,229.96,229.87,134.43922724]
[1733729108486,19.18453935,229.96,229.79,24.22245292]
[1733729108487,0.25233179,229.95,229.79,24.22245292]
[1733729108715,1.4854,229.95,229.76,0.65243496]
[1733729108888,0.25233179,229.94,229.76,0.65243496]
[1733729109484,0.25233179,229.94,229.77,24.22245292]
[1733729109717,0.25233179,229.94,229.78,0.65247165]
[1733729109923,0.25233179,229.98,229.79,24.22245292]
[1733729110216,0.25233179,229.98,229.8,24.42924527]
[1733729110422,0.25233179,229.98,229.81,24.22245292]
[1733729110633,0.25233179,229.98,229.82,0.65238195]
[1733729110983,0.25233179,229.98,229.77,24.22245292]
[1733729110984,0.25233179,229.98,229.78,0.65247362]
[1733729111210,24.02921579,229.98,229.78,0.65247362]
[1733729111414,20.0,229.95,229.78,24.87492654]
[1733729111622,20.0,229.91,229.78,0.65247362]
[1733729112416,20.0,229.91,229.79,0.65251626]
[1733729113228,20.0,229.91,229.8,0.6524886]
[1733729113627,20.0,229.91,229.81,136.3]
[1733729113803,20.0,229.91,229.82,0.65248575]
[1733729114004,0.25233179,229.9,229.78,0.65249493]
[1733729114205,23.776884,229.9,229.78,0.65249493]
[1733729114406,24.02921579,229.9,229.78,0.65249493]
[1733729114627,20.0,229.87,229.78,0.65249493]
[1733729115141,20.0,229.87,229.79,0.65255161]
[1733729116243,1.85214156,229.91,229.82,24.22245292]
[1733729116538,0.25233179,229.98,229.83,0.65239571]
[1733729116726,2.09774027,229.98,229.83,0.65239571]
[1733729116907,0.25233179,229.98,229.83,0.65239571]
[1733729117509,20.0,229.91,229.83,0.65239571]
[1733729118114,20.0,229.96,229.83,0.65239571]
[1733729118712,0.25233179,229.95,229.83,0.65239571]
[1733729118935,20.0,229.92,229.8,0.65245385]
[1733729119322,20.0,229.92,229.8,24.87490677]
[1733729120246,20.0,229.92,229.84,24.22245292]
[1733729120413,7.40414534,229.99,229.85,0.65232824]
[1733729120414,20.0,229.96,229.85,0.65232824]
[1733729121318,7.40414534,229.99,229.87,24.22245292]
[1733729121518,7.40414534,229.99,229.88,0.65223334]
[1733729121815,7.40414534,229.99,229.88,24.87468626]
[1733729122241,5.6041,229.99,229.9,24.22245292]
[1733729122424,1.4854,230.02,229.91,0.65216466]
[1733729122612,2.32750596,230.0,229.91,0.65216466]
[1733729125815,0.5183649,230.0,229.91,0.65216466]
[1733729126016,20.0,229.98,229.91,0.65216466]
[1733729126265,20.0,229.98,229.88,0.65225586]
[1733729126435,20.0,229.98,229.89,0.65220958]
[1733729127523,0.77069669,230.0,229.83,0.65231532]
[1733729127524,20.0,229.94,229.83,0.65231532]
[1733729129477,20.0,229.94,229.84,14.99086407]
[1733729129646,20.0,229.94,229.85,0.65234585]
[1733729130652,20.0,229.94,229.86,0.6523683]
[1733729130832,20.0,229.94,229.83,0.65234632]
[1733729131034,0.5183649,230.0,229.83,0.65234632]
[1733729131035,1.86039021,229.95,229.83,0.65234632]
[1733729131234,0.5183649,230.0,229.83,15.64321039]
[1733729131235,20.0,229.96,229.83,15.64321039]
[1733729131657,20.0,229.96,229.83,0.65234632]
[1733729131858,0.25233179,229.99,229.83,0.65234632]
[1733729132631,20.0,229.96,229.83,0.65234632]
[1733729133949,20.0,229.96,229.83,15.64321039]
[1733729134868,2.29506848,230.0,229.86,14.99086407]
[1733729135154,2.29506848,230.0,229.87,15.6430431]
[1733729135363,2.29506848,230.0,229.87,0.65217903]
[1733729135870,2.29506848,230.0,229.87,15.6430431]
[1733729136072,0.5183649,230.0,229.89,14.99086407]
[1733729136283,0.5183649,230.0,229.9,0.65214596]
[1733729137443,0.5183649,230.0,229.9,15.64301003]
[1733729138453,0.5183649,230.0,229.91,23.776884]
[1733729138662,0.5183649,230.0,229.92,0.65206004]
[1733729138974,0.5183649,230.0,229.92,15.64292411]
[1733729139149,0.5183649,230.0,229.93,14.99086407]
[1733729139505,0.5183649,230.0,229.94,0.65199416]
[1733729141773,1.73773179,230.08,229.94,0.65199416]
[1733729141774,0.75609669,230.08,229.94,15.64285823]
[1733729141961,23.776884,230.11,229.96,14.99086407]
[1733729142276,7.41403596,230.12,230.01,136.3]
[1733729142453,7.41403596,230.12,230.02,0.65190333]
[1733729142653,1.80993596,230.12,230.02,0.65190333]
[1733729142951,0.25233179,230.17,230.03,14.99086407]
[1733729143151,0.25233179,230.22,230.04,0.65174204]
[1733729143359,5.6041,230.21,230.04,0.65174204]
[1733729143592,0.25233179,230.2,230.04,0.65174204]
[1733729144277,0.25233179,230.2,230.04,15.64260611]
[1733729144963,0.25233179,230.2,230.04,0.65174204]
[1733729145164,0.25233179,230.2,230.01,0.65182132]
[1733729145466,0.25233179,230.2,229.98,4.24246884]
[1733729145467,5.0,230.19,229.98,4.24246884]
[1733729145776,20.0,230.16,229.98,4.24246884]
[1733729145959,20.0,230.12,229.98,4.24246884]
[1733729146163,20.0,230.12,229.98,19.23333291]
[1733729146780,20.0,230.12,229.98,4.24246884]
[1733729146951,0.25233179,230.11,229.98,4.24246884]
[1733729147156,20.0,230.12,229.98,4.24246884]
[1733729147951,20.0,230.12,229.98,19.23333291]
[1733729148354,20.0,230.08,229.98,4.24246884]
[1733729149099,21.82652987,230.13,229.98,4.24246884]
[1733729149251,20.0,230.13,229.98,19.23333291]
[1733729150296,20.0,230.13,230.0,14.99086407]
[1733729150449,20.0,230.13,230.01,0.65183877]
[1733729151071,20.0,230.13,230.01,15.64270284]
[1733729151458,20.0,230.18,230.02,14.99086407]
[1733729151760,23.776884,230.18,230.03,0.65175829]
[1733729152193,1.7933612,230.19,230.03,0.65175829]
[1733729152485,5.85643179,230.21,230.05,14.99086407]
[1733729152683,5.85643179,230.21,230.06,0.65169868]
[1733729152889,7.66415588,230.21,230.06,0.65169868]
[1733729153685,20.0,230.18,230.06,0.65169868]
[1733729154091,23.776884,230.2,230.06,0.65169868]
[1733729154386,7.41182409,230.21,230.06,21.89946275]
[1733729154591,1.80772409,230.21,230.08,14.99086407]
[1733729154768,0.6221,230.22,230.09,0.65158984]
[1733729155157,0.87443179,230.22,230.09,0.65158984]
[1733729155359,0.6221,230.22,230.09,0.65158984]
[1733729155970,20.0,230.18,230.09,0.65158984]
[1733729159691,20.0,230.18,230.06,6.2569]
[1733729159692,20.0,230.14,230.07,0.65172159]
[1733729159873,20.0,230.14,230.02,0.65177207]
[1733729160368,23.776884,230.13,230.02,0.65177207]
[1733729160756,20.0,230.19,230.02,0.65177207]
[1733729160955,0.25233179,230.18,230.02,15.64263614]
[1733729161155,23.776884,230.17,230.04,14.99086407]
[1733729161357,23.776884,230.17,230.05,0.65172557]
[1733729161697,23.776884,230.13,230.05,0.65172557]
[1733729161894,24.02921579,230.13,230.02,0.65183113]
[1733729162063,24.02921579,230.13,230.01,6.2766]
[1733729162064,20.0,230.1,229.99,0.65189674]
[1733729162268,23.776884,230.09,229.99,0.65189674]
[1733729162466,24.02921579,230.09,229.99,0.65189674]
[1733729162675,20.0,230.06,229.99,0.65189674]
[1733729162880,20.0,230.06,229.93,14.99086407]
[1733729162881,24.02921579,230.05,229.94,0.65206734]
[1733729163199,20.0,230.02,229.92,4.59173827]
[1733729163493,20.0,230.02,229.92,0.65213827]
[1733729163494,23.776884,230.01,229.92,0.65213827]
[1733729163683,23.776884,230.01,229.88,0.65219469]
[1733729163994,23.776884,230.01,229.88,15.64305876]
[1733729164162,23.776884,230.01,229.88,0.65219469]
[1733729164370,24.02921579,230.01,229.88,0.65219469]
[1733729164600,23.776884,230.01,229.88,15.64305876]
[1733729164765,23.776884,230.01,229.89,14.99086407]
[1733729165096,23.776884,230.01,229.87,3.8875]
[1733729165097,23.776884,230.05,229.92,14.99086407]
[1733729165261,0.25233179,230.1,229.93,0.65206037]
[1733729165662,20.25233179,230.1,229.93,0.65206037]
[1733729166188,20.0,230.09,229.93,0.65206037]
[1733729166364,0.25233179,230.08,229.93,0.65206037]
[1733729166697,20.0,230.01,229.93,0.65206037]
[1733729166988,43.776884,230.1,229.93,0.65206037]
[1733729167196,0.25233179,230.09,229.93,0.65206037]
[1733729169984,0.25233179,230.09,229.93,15.64292444]
[1733729170463,43.776884,230.1,229.93,15.64292444]
[1733729170464,23.776884,230.1,229.93,15.64292444]
[1733729170658,2.56004534,230.14,229.96,3.5941]
[1733729170858,2.56004534,230.14,229.97,0.65193162]
[1733729171796,2.56004534,230.14,229.98,14.99086407]
[1733729171972,23.776884,230.13,229.99,0.65186612]
[1733729172164,20.0,230.1,229.99,0.65186612]
[1733729172788,0.25233179,230.2,229.99,0.65186612]
[1733729173086,0.25233179,230.2,230.0,14.99086407]
[1733729173302,2.49892648,230.2,230.01,0.65181288]
[1733729173497,0.25233179,230.2,230.01,0.65181288]
[1733729173862,24.02921579,230.2,230.01,0.65181288]
[1733729174066,23.776884,230.13,230.01,0.65181288]
[1733729174304,23.776884,230.13,230.02,0.65191963]
[1733729174305,0.25233179,230.12,230.02,0.65191963]
[1733729175003,23.776884,230.09,229.98,0.65191952]
[1733729175203,24.02921579,230.09,229.98,0.65191952]
[1733729177028,20.0,230.06,229.96,3.5941]
[1733729177303,23.776884,230.05,229.96,3.5941]
[1733729177693,24.02921579,230.05,229.96,3.5941]
[1733729178605,23.776884,230.05,229.96,3.5941]
[1733729179017,2.23511615,230.12,229.97,0.65208909]
[1733729179172,0.25233179,230.11,229.97,0.65208909]
[1733729179597,0.25233179,230.15,229.97,0.65208909]
[1733729180480,20.0,230.12,229.97,0.65208909]
[1733729180806,0.25233179,230.14,229.98,14.99086407]
[1733729180979,0.25233179,230.14,229.96,3.5941]
[1733729180980,0.25233179,230.2,229.99,15.64276749]
[1733729181572,5.25233179,230.2,229.99,15.64276749]
[1733729181809,5.25233179,230.2,229.99,0.65190342]
[1733729182172,20.0,230.13,229.99,0.65190342]
[1733729183310,20.0,230.09,229.99,0.65190342]
[1733729183478,20.0,230.09,229.98,0.65196109]
[1733729183871,20.0,230.09,229.98,15.64282516]
[1733729184103,20.0,230.18,229.98,15.64282516]
[1733729184310,20.0,230.14,229.98,15.64282516]
[1733729184477,20.0,230.1,229.98,15.64282516]
[1733729184884,20.0,230.14,229.98,0.65196109]
[1733729185096,20.0,230.1,229.98,0.65196109]
[1733729186612,24.02921579,230.09,229.98,0.65196109]
[1733729186913,20.0,230.06,229.97,0.65203669]
[1733729188588,24.02921579,230.05,229.96,3.5941]
[1733729189524,20.0,230.12,229.96,4.24621998]
[1733729189719,0.25233179,230.11,229.97,14.99086407]
[1733729189906,0.25233179,230.11,229.96,4.24621998]
[1733729189907,0.25233179,230.19,229.98,15.64280512]
[1733729190110,0.25233179,230.19,229.99,14.99086407]
[1733729190320,0.25233179,230.19,230.0,0.65186063]
[1733729191226,20.0,230.18,230.0,0.65186063]
[1733729191526,0.25233179,230.17,230.0,0.65186063]
[1733729192814,24.02921579,230.17,230.0,0.65186063]
[1733729193017,20.0,230.14,230.0,0.65186063]
[1733729193319,20.0,230.1,230.01,6.371]
[1733729193520,20.0,230.1,230.02,0.65188915]
[1733729193829,20.0,230.1,230.01,6.371]
[1733729194416,11.7265,230.21,230.01,6.371]
[1733729194417,20.0,230.06,230.01,6.371]
[1733729195993,5.0,230.19,230.01,6.371]
[1733729195994,0.25233179,230.18,230.02,0.65201461]
[1733729197295,44.02921579,230.18,230.02,0.65201461]
[1733729197526,23.776884,230.16,230.02,0.65201461]
[1733729197730,20.0,230.09,230.02,0.65201461]
[1733729199213,24.02921579,230.08,230.01,6.371]
[1733729199938,20.0,230.05,229.97,0.65189891]
[1733729200101,20.0,230.05,229.96,3.5941]
[1733729200625,20.0,230.05,229.97,0.65207095]
[1733729202337,23.776884,230.14,229.97,0.65207095]
[1733729202502,37.400212,230.11,229.97,0.65207095]
[1733729202819,20.0,230.07,229.97,0.65207095]
[1733729203809,0.25233179,230.06,229.96,3.5941]
[1733729204004,20.0,230.03,229.96,3.5941]
[1733729204239,0.25233179,230.02,229.96,3.5941]
[1733729204613,20.0,230.03,229.96,3.5941]